fUST/lending_fUST_20250323
["ID","MTS","AMOUNT","RATE_DAILY","PERIOD"]
[356574253,1742700633625,-596.04,0.00021917,2]
[356574254,1742700633638,-500.0,0.00021917,2]
[356574255,1742700633650,-500.0,0.00021917,2]
[356574256,1742700633667,-497.16,0.00021917,2]
[356574257,1742700633681,-1353.0,0.00021917,2]
[356574258,1742700633693,-675.59,0.00021917,2]
[356574259,1742700633704,-500.0,0.00021917,2]
[356574260,1742700633715,-500.0,0.00021917,2]
[356574261,1742700633726,-702.09,0.00021917,2]
[356574262,1742700633735,-500.0,0.00021917,2]
[356574263,1742700633746,-500.0,0.00021917,2]
[356574264,1742700633757,-354.14313847,0.00021917,2]
[356574265,1742700633768,-500.0,0.00021917,2]
[356574266,1742700633778,-500.0,0.00021917,2]
[356574267,1742700633789,-1041.62,0.00021917,2]
[356574268,1742700633801,-646.57,0.00021917,2]
[356574269,1742700633814,-773.58,0.00021917,2]
[356574270,1742700633825,-531.08,0.00021917,2]
[356574271,1742700633837,-550.67,0.00021917,2]
[356574272,1742700633848,-500.0,0.00021917,2]
[356574273,1742700633858,-656.45,0.00021917,2]
[356574274,1742700633869,-1040.38,0.00021917,2]
[356574275,1742700633879,-500.0,0.00021917,2]
[356574276,1742700633890,-924.95,0.00021917,2]
[356574277,1742700633900,-500.0,0.00021917,2]
[356574278,1742700633912,-500.0,0.00021917,2]
[356574279,1742700633923,-500.0,0.00021917,2]
[356574280,1742700633933,-2287.72,0.00021917,2]
[356574281,1742700633944,-563.04,0.00021917,2]
[356574282,1742700633954,-876.75,0.00021917,2]
[356574283,1742700633964,-911.72,0.00021917,2]
[356574284,1742700633975,-1304.55,0.00021917,2]
[356574285,1742700633986,-500.0,0.00021917,2]
[356574286,1742700634005,-500.0,0.00021917,2]
[356574287,1742700634021,-500.0,0.00021917,2]
[356574288,1742700634033,-760.24,0.00021917,2]
[356574289,1742700634047,-2854.54,0.00021917,2]
[356574290,1742700634060,-151.0,0.00021917,2]
[356574291,1742700634073,-151.0,0.00021917,2]
[356574292,1742700634085,-151.0,0.00021917,2]
[356574293,1742700634098,-151.0,0.00021917,2]
[356574294,1742700634110,-500.0,0.00021917,2]
[356574295,1742700634121,-151.0,0.00021917,2]
[356574296,1742700634141,-942.54,0.00021917,2]
[356574297,1742700634152,-500.0,0.00021917,2]
[356574298,1742700634164,-500.0,0.00021917,2]
[356574299,1742700634176,-500.0,0.00021917,2]
[356574300,1742700634188,-6087.76,0.00021917,2]
[356574301,1742700634199,-939.83,0.00021917,2]
[356574302,1742700634211,-561.21,0.00021917,2]
[356574303,1742700634224,-500.0,0.00021917,2]
[356574304,1742700634236,-500.0,0.00021917,2]
[356574305,1742700634248,-1281.91,0.00021917,2]
[356574306,1742700634259,-570.46,0.00021917,2]
[356574307,1742700634271,-907.85,0.00021917,2]
[356574308,1742700634282,-1663.22,0.00021917,2]
[356574309,1742700634294,-500.0,0.00021917,2]
[356574310,1742700634306,-500.0,0.00021917,2]
[356574311,1742700634317,-500.0,0.00021917,2]
[356574312,1742700634328,-500.0,0.00021917,2]
[356574313,1742700634341,-500.0,0.00021917,2]
[356574314,1742700634358,-1650.52,0.00021917,2]
[356574315,1742700634369,-3084.99,0.00021917,2]
[356574316,1742700634380,-535.32,0.00021917,2]
[356574317,1742700634391,-500.0,0.00021917,2]
[356574318,1742700634402,-287.05400918,0.00021917,2]
[356574319,1742700634414,-500.0,0.00021917,2]
[356574320,1742700634425,-576.51,0.00021917,2]
[356574321,1742700634436,-932.08,0.00021917,2]
[356574322,1742700634447,-500.0,0.00021917,2]
[356574323,1742700634458,-8435.64,0.00021917,2]
[356574324,1742700634469,-7334.4,0.00021917,2]
[356574325,1742700634481,-500.0,0.00021917,2]
[356574326,1742700634493,-707.88,0.00021917,2]
[356574327,1742700634504,-915.87,0.00021917,2]
[356574328,1742700634515,-3762.62201979,0.00021917,2]
[356574341,1742700637927,-500.0,0.00021916,2]
[356574342,1742700637938,-500.0,0.00021916,2]
[356574343,1742700637948,-500.0,0.00021916,2]
[356574344,1742700637959,-500.0,0.00021916,2]
[356574345,1742700638297,-500.0,0.00021916,2]
[356574346,1742700638315,-500.0,0.00021916,2]
[356574347,1742700638325,-500.0,0.00021916,2]
[356574348,1742700638334,-500.0,0.00021916,2]
[356574349,1742700638344,-500.0,0.00021916,2]
[356574350,1742700638353,-500.0,0.00021916,2]
[356574351,1742700638362,-500.0,0.00021916,2]
[356574352,1742700638371,-500.0,0.00021916,2]
[356574353,1742700638381,-500.0,0.00021916,2]
[356574354,1742700638390,-500.0,0.00021916,2]
[356574355,1742700638399,-500.0,0.00021916,2]
[356574356,1742700638408,-500.0,0.00021916,2]
[356574357,1742700638418,-500.0,0.00021916,2]
[356574358,1742700638427,-500.0,0.00021916,2]
[356574359,1742700638436,-500.0,0.00021916,2]
[356574360,1742700638445,-500.0,0.00021916,2]
[356574361,1742700638455,-500.0,0.00021916,2]
[356574362,1742700638464,-500.0,0.00021916,2]
[356574363,1742700638473,-500.0,0.00021916,2]
[356574364,1742700638483,-500.0,0.00021916,2]
[356574365,1742700638491,-500.0,0.00021916,2]
[356574366,1742700638501,-500.0,0.00021916,2]
[356574367,1742700638510,-500.0,0.00021916,2]
[356574368,1742700638519,-500.0,0.00021916,2]
[356574369,1742700638528,-500.0,0.00021916,2]
[356574370,1742700638537,-500.0,0.00021916,2]
[356574371,1742700638547,-500.0,0.00021916,2]
[356574372,1742700638556,-500.0,0.00021916,2]
[356574373,1742700638565,-500.0,0.00021916,2]
[356574374,1742700638574,-500.0,0.00021916,2]
[356574375,1742700638583,-500.0,0.00021916,2]
[356574376,1742700638592,-500.0,0.00021916,2]
[356574377,1742700638602,-500.0,0.00021916,2]
[356574378,1742700638611,-500.0,0.00021916,2]
[356574379,1742700638620,-14037.73798021,0.00021917,2]
[356574380,1742700638629,-582.54,0.00021917,2]
[356574381,1742700638638,-1827.59,0.00021917,2]
[356574382,1742700638648,-1137.08,0.00021917,2]
[356574383,1742700638657,-500.0,0.00021917,2]
[356574384,1742700638670,-2136.38,0.00021917,2]
[356574385,1742700638680,-1079.16,0.00021917,2]
[356574386,1742700638689,-719.14,0.00021917,2]
[356574387,1742700638698,-3203.87,0.00021917,2]
[356574388,1742700638709,-500.0,0.00021917,2]
[356574389,1742700638718,-896.1,0.00021917,2]
[356574390,1742700638727,-1476.71,0.00021917,2]
[356574391,1742700638736,-500.0,0.00021917,2]
[356574392,1742700638746,-500.0,0.00021917,2]
[356574393,1742700638755,-771.38,0.00021917,2]
[356574394,1742700638765,-779.19,0.00021917,2]
[356574395,1742700638775,-500.0,0.00021917,2]
[356574396,1742700638784,-500.0,0.00021917,2]
[356574397,1742700638793,-1582.2,0.00021917,2]
[356574398,1742700638803,-559.18,0.00021917,2]
[356574399,1742700638812,-500.0,0.00021917,2]
[356574400,1742700638821,-2000.0,0.00021917,2]
[356574401,1742700638831,-2115.68,0.00021917,2]
[356574402,1742700638841,-1009.13,0.00021917,2]
[356574403,1742700638850,-500.0,0.00021917,2]
[356574404,1742700638859,-1049.14,0.00021917,2]
[356574405,1742700638868,-500.0,0.00021917,2]
[356574406,1742700638877,-1402.51,0.00021917,2]
[356574407,1742700638886,-509.02,0.00021917,2]
[356574408,1742700638895,-1027.34,0.00021917,2]
[356574409,1742700638904,-500.0,0.00021917,2]
[356574410,1742700638914,-578.341056,0.00021917,2]
[356574411,1742700638923,-800.91,0.00021917,2]
[356574412,1742700638933,-578.341056,0.00021917,2]
[356574413,1742700638942,-578.341056,0.00021917,2]
[356574414,1742700638951,-578.341056,0.00021917,2]
[356574415,1742700638960,-578.341056,0.00021917,2]
[356574416,1742700638970,-6041.1,0.00021917,2]
[356574417,1742700638979,-578.341056,0.00021917,2]
[356574418,1742700638989,-578.341056,0.00021917,2]
[356574419,1742700638998,-578.341056,0.00021917,2]
[356574420,1742700639008,-863.6,0.00021917,2]
[356574421,1742700639017,-500.0,0.00021917,2]
[356574422,1742700639026,-578.341056,0.00021917,2]
[356574423,1742700639036,-578.341056,0.00021917,2]
[356574424,1742700639046,-557.28,0.00021917,2]
[356574425,1742700639055,-2600.57,0.00021917,2]
[356574426,1742700639064,-500.0,0.00021917,2]
[356574427,1742700639074,-500.0,0.00021917,2]
[356574428,1742700639083,-500.0,0.00021917,2]
[356574429,1742700639092,-2154.82,0.00021917,2]
[356574430,1742700639102,-3463.22,0.00021917,2]
[356574431,1742700639111,-500.0,0.00021917,2]
[356574432,1742700639120,-552.6,0.00021917,2]
[356574433,1742700639131,-500.0,0.00021917,2]
[356574434,1742700639140,-617.95,0.00021917,2]
[356574435,1742700639150,-2307.82,0.00021917,2]
[356574436,1742700639159,-830.25,0.00021917,2]
[356574437,1742700639169,-1535.73,0.00021917,2]
[356574438,1742700639179,-2660.81,0.00021917,2]
[356574439,1742700639188,-500.0,0.00021917,2]
[356574440,1742700639198,-379.70643419,0.00021917,2]
[356574441,1742700639207,-581.34,0.00021917,2]
[356574442,1742700639217,-16755.55,0.00021917,2]
[356574443,1742700639227,-736.37,0.00021917,2]
[356574444,1742700639236,-4366.63,0.00021917,2]
[356574445,1742700639246,-848.68,0.00021917,2]
[356574446,1742700639255,-500.0,0.00021917,2]
[356574447,1742700639264,-744.2,0.00021917,2]
[356574448,1742700639273,-500.0,0.00021917,2]
[356574449,1742700639283,-9262.36,0.00021917,2]
[356574450,1742700639295,-1157.44,0.00021917,2]
[356574451,1742700639304,-500.0,0.00021917,2]
[356574452,1742700639313,-500.0,0.00021917,2]
[356574453,1742700639323,-782.49,0.00021917,2]
[356574454,1742700639342,-34.38293216,0.00021917,2]
[356574455,1742700639363,-465.61706784,0.00021917,2]
[356574456,1742700639373,-6655.88267079,0.00021917,2]
[356574459,1742700640407,-18034.83732921,0.00021917,2]
[356574460,1742700640417,-500.0,0.00021917,2]
[356574461,1742700640427,-500.0,0.00021917,2]
[356574462,1742700640436,-500.0,0.00021917,2]
[356574463,1742700640445,-625.18,0.00021917,2]
[356574464,1742700640454,-6086.78,0.00021917,2]
[356574465,1742700640463,-1140.61,0.00021917,2]
[356574466,1742700640473,-500.0,0.00021917,2]
[356574467,1742700640482,-500.0,0.00021917,2]
[356574468,1742700640491,-514.0,0.00021917,2]
[356574470,1742700640500,-28218.28,0.00021917,2]
[356574472,1742700640509,-2355.47,0.00021917,2]
[356574474,1742700640519,-500.0,0.00021917,2]
[356574475,1742700640528,-500.0,0.00021917,2]
[356574476,1742700640538,-500.0,0.00021917,2]
[356574477,1742700640547,-500.0,0.00021917,2]
[356574478,1742700640556,-839.89,0.00021917,2]
[356574479,1742700640566,-858.17,0.00021917,2]
[356574480,1742700640575,-630.15,0.00021917,2]
[356574481,1742700640585,-914.35,0.00021917,2]
[356574482,1742700640594,-500.0,0.00021917,2]
[356574483,1742700640603,-3362.6,0.00021917,2]
[356574484,1742700640612,-500.0,0.00021917,2]
[356574485,1742700640621,-500.0,0.00021917,2]
[356574486,1742700640631,-500.0,0.00021917,2]
[356574487,1742700640640,-500.0,0.00021917,2]
[356574488,1742700640649,-500.0,0.00021917,2]
[356574489,1742700640661,-15005.68267079,0.00021917,2]
[356574517,1742700646078,-1956.08238499,0.00021817,2]
[356574518,1742700646088,-91700.18048191,0.00021917,2]
[356574520,1742701122016,2091.61,0.00012002,2]
[356574521,1742701277000,188.023594,0.00010959,2]
[356574523,1742701546140,-300.0,0.00018687,2]
[356574524,1742701546163,-221.71481658,0.00018688,2]
[356574534,1742701747134,-300.0,0.00018685,2]
[356574535,1742701747157,-215.56981091,0.00018686,2]
[356574536,1742701747180,-500.0,0.00018686,2]
[356574537,1742701747204,-1065.61234073,0.00018686,2]
[356574538,1742701747226,-1065.61234073,0.00018686,2]
[356574539,1742701747247,-640.7089919,0.00018686,2]
[356574540,1742701747270,-1065.61234073,0.00018686,2]
[356574541,1742701747293,-1065.61234073,0.00018686,2]
[356574542,1742701747317,-1065.61234073,0.00018686,2]
[356574543,1742701747340,-1065.61234073,0.00018686,2]
[356574544,1742701747362,-1065.61234073,0.00018686,2]
[356574545,1742701747389,-1065.61234073,0.00018686,2]
[356574546,1742701747410,-15.06097041,0.00018686,2]
[356574547,1742701748097,-1050.55137032,0.00018686,2]
[356574548,1742701748120,-1065.61234073,0.00018686,2]
[356574549,1742701748143,-1065.61234073,0.00018686,2]
[356574550,1742701748166,-1065.61234073,0.00018686,2]
[356574551,1742701748188,-1065.61234073,0.00018686,2]
[356574552,1742701748284,-1065.61234073,0.00018686,2]
[356574553,1742701748306,-1065.61234073,0.00018686,2]
[356574554,1742701748328,-1065.61234073,0.00018686,2]
[356574555,1742701748349,-1065.61234073,0.00018686,2]
[356574556,1742701748371,-1065.61234073,0.00018686,2]
[356574557,1742701748394,-1065.61234073,0.00018686,2]
[356574558,1742701748416,-1065.61234073,0.00018686,2]
[356574559,1742701748438,-1065.61234073,0.00018686,2]
[356574560,1742701748459,-1065.61234073,0.00018686,2]
[356574561,1742701748482,-1065.61234073,0.00018686,2]
[356574562,1742701748504,-1065.61234073,0.00018686,2]
[356574563,1742701748527,-1065.61234073,0.00018686,2]
[356574564,1742701748549,-1065.61234073,0.00018686,2]
[356574565,1742701748570,-1065.61234073,0.00018686,2]
[356574566,1742701748592,-1065.61234073,0.00018686,2]
[356574567,1742701748616,-1065.61234073,0.00018686,2]
[356574568,1742701748637,-1065.61234073,0.00018686,2]
[356574569,1742701748658,-1065.61234073,0.00018686,2]
[356574570,1742701748679,-1065.61234073,0.00018686,2]
[356574571,1742701748701,-1065.61234073,0.00018686,2]
[356574572,1742701748723,-1065.61234073,0.00018686,2]
[356574573,1742701748745,-1065.61234073,0.00018686,2]
[356574574,1742701748767,-1065.61234073,0.00018686,2]
[356574575,1742701748789,-1065.61234073,0.00018686,2]
[356574576,1742701748810,-1065.61234073,0.00018686,2]
[356574577,1742701748831,-1065.61234073,0.00018686,2]
[356574578,1742701748853,-1065.61234073,0.00018686,2]
[356574579,1742701748874,-1065.61234073,0.00018686,2]
[356574580,1742701748896,-1065.61234073,0.00018686,2]
[356574581,1742701748918,-1065.61234073,0.00018686,2]
[356574582,1742701748943,-1065.61234073,0.00018686,2]
[356574583,1742701748967,-1065.61234073,0.00018686,2]
[356574584,1742701748990,-1065.61234073,0.00018686,2]
[356574585,1742701749013,-1065.61234073,0.00018686,2]
[356574586,1742701749038,-1065.61234073,0.00018686,2]
[356574587,1742701749060,-1065.61234073,0.00018686,2]
[356574588,1742701749082,-1065.61234073,0.00018686,2]
[356574589,1742701749104,-1065.61234073,0.00018686,2]
[356574590,1742701749126,-1065.61234073,0.00018686,2]
[356574591,1742701749148,-1065.61234073,0.00018686,2]
[356574592,1742701749169,-1065.61234072,0.00018686,2]
[356574593,1742701749191,-1065.61234072,0.00018686,2]
[356574594,1742701749211,-1065.61234072,0.00018686,2]
[356574595,1742701749232,-1065.61234072,0.00018686,2]
[356574596,1742701749257,-1065.61234072,0.00018686,2]
[356574597,1742701749279,-1065.61234072,0.00018686,2]
[356574598,1742701749300,-1065.61234072,0.00018686,2]
[356574599,1742701749321,-1065.61234072,0.00018686,2]
[356574600,1742701749344,-1065.61234072,0.00018686,2]
[356574601,1742701749364,-1065.61234072,0.00018686,2]
[356574602,1742701749385,-1065.61234072,0.00018686,2]
[356574603,1742701749406,-1065.61234072,0.00018686,2]
[356574604,1742701749427,-1065.61234072,0.00018686,2]
[356574605,1742701749449,-1065.61234072,0.00018686,2]
[356574606,1742701749472,-1065.61234072,0.00018686,2]
[356574607,1742701749495,-1065.61234072,0.00018686,2]
[356574608,1742701749516,-1065.61234072,0.00018686,2]
[356574609,1742701749538,-1065.61234072,0.00018686,2]
[356574610,1742701749559,-1065.61234072,0.00018686,2]
[356574611,1742701749581,-1065.61234072,0.00018686,2]
[356574612,1742701749602,-1065.61234072,0.00018686,2]
[356574613,1742701749624,-1065.61234072,0.00018686,2]
[356574614,1742701749646,-1065.61234072,0.00018686,2]
[356574615,1742701749668,-1065.61234072,0.00018686,2]
[356574616,1742701749690,-1065.61234072,0.00018686,2]
[356574617,1742701749710,-1065.61234072,0.00018686,2]
[356574618,1742701749733,-1065.61234072,0.00018686,2]
[356574619,1742701749755,-1065.61234072,0.00018686,2]
[356574620,1742701749776,-1065.61234072,0.00018686,2]
[356574621,1742701749798,-1065.61234072,0.00018686,2]
[356574622,1742701749820,-1167.34538404,0.00018686,2]
[356574623,1742701749841,-1167.34538404,0.00018686,2]
[356574624,1742701749863,-1167.34538404,0.00018686,2]
[356574625,1742701749884,-1167.34538404,0.00018686,2]
[356574626,1742701749906,-1167.34538404,0.00018686,2]
[356574627,1742701749926,-1167.34538404,0.00018686,2]
[356574628,1742701749946,-24900.0,0.00018692,2]
[356574629,1742701749965,-500.0,0.000187,2]
[356574630,1742701749985,-500.0,0.000187,2]
[356574631,1742701750004,-500.0,0.000187,2]
[356574632,1742701750026,-500.0,0.000187,2]
[356574633,1742701750047,-500.0,0.000187,2]
[356574634,1742701750065,-508.49508392,0.000187,2]
[356574635,1742701750085,-502.99435575,0.000187,2]
[356574636,1742701750107,-500.0,0.000187,2]
[356574637,1742701750127,-500.0,0.000187,2]
[356574638,1742701750147,-500.0,0.000187,2]
[356574639,1742701750167,-169.01991044,0.000187,2]
[356574640,1742701754200,-330.98008956,0.000187,2]
[356574641,1742701754223,-500.0,0.000187,2]
[356574642,1742701754245,-513.92048078,0.000187,2]
[356574643,1742701754265,-500.0,0.000187,2]
[356574644,1742701754285,-500.0,0.000187,2]
[356574645,1742701754305,-206.3125409,0.00019013,2]
[356574646,1742701754326,-3580.31271523,0.00020316,2]
[356574647,1742701754346,-420.0,0.00020374,2]
[356574648,1742701754366,-556.56942408,0.00020455,2]
[356574649,1742701754387,-5000.0,0.00020723,2]
[356574650,1742701754408,-1491.305519,0.00020945,2]
[356574651,1742701754428,-1749.97970257,0.00021505,2]
[356574652,1742701754448,-146.70903568,0.00021531,2]
[356574690,1742701832215,-353.29096432,0.00021531,2]
[356574691,1742701832225,-151.1807645,0.00021617,2]
[356574692,1742701832234,-8982.0,0.000218,2]
[356574693,1742701832244,-300.0,0.00021816,2]
[356574694,1742701832253,-2087.79937343,0.00021816,2]
[356574695,1742701832262,-30207.04857605,0.00021817,2]
[356574696,1742701832286,-16603.03558,0.00021817,2]
[356574697,1742701832298,-329.80498334,0.00021817,2]
[356574713,1742701839466,-500.0,0.00021816,2]
[356574714,1742701839476,-500.0,0.00021816,2]
[356574715,1742701839485,-12.84797664,0.00021816,2]
[356574717,1742701839857,-57.96831295,0.00021816,2]
[356574718,1742701839871,-429.18371041,0.00021816,2]
[356574719,1742701839883,-214.97520206,0.00021816,2]
[356574722,1742701839930,-285.02479794,0.00021816,2]
[356574723,1742701839942,-500.0,0.00021816,2]
[356574724,1742701839954,-500.0,0.00021816,2]
[356574725,1742701839966,-500.0,0.00021816,2]
[356574726,1742701839977,-500.0,0.00021816,2]
[356574727,1742701839988,-500.0,0.00021816,2]
[356574728,1742701840001,-500.0,0.00021816,2]
[356574729,1742701840012,-500.0,0.00021816,2]
[356574730,1742701840024,-500.0,0.00021816,2]
[356574731,1742701840035,-500.0,0.00021816,2]
[356574732,1742701840047,-500.0,0.00021816,2]
[356574733,1742701840058,-549.56217322,0.00021816,2]
[356574734,1742701840069,-500.0,0.00021816,2]
[356574736,1742701840081,-500.0,0.00021816,2]
[356574737,1742701840091,-500.0,0.00021816,2]
[356574738,1742701840103,-68025.6701106,0.00021817,2]
[356574747,1742701840537,-199188.65523257,0.00021817,2]
[356574766,1742702749122,-178.9976,0.00019071,2]
[356574767,1742702749144,-1685.0510408,0.00019915,2]
[356574768,1742702749165,-89.05915673,0.00019932,2]
[356574769,1742702801094,-503.36554454,0.00019833,2]
[356574770,1742702825084,-1547.50333229,0.00019833,2]
[356574771,1742702825105,-300.0,0.00019932,2]
[356574772,1742702825125,-184.91489361,0.00019933,2]
[356574773,1742702825145,-345.7454744,0.00019933,2]
[356574774,1742702836074,-154.2545256,0.00019933,2]
[356574775,1742702836100,-215.12335702,0.00019933,2]
[356574776,1742702836122,-500.0,0.00019933,2]
[356574777,1742702836144,-888.35428117,0.00019933,2]
[356574778,1742702836166,-888.35428117,0.00019933,2]
[356574779,1742702836188,-500.0,0.00019933,2]
[356574780,1742702836211,-888.35428117,0.00019933,2]
[356574781,1742702836232,-888.35428117,0.00019933,2]
[356574782,1742702836253,-500.0,0.00019933,2]
[356574783,1742702836274,-888.35428117,0.00019933,2]
[356574784,1742702836296,-888.35428117,0.00019933,2]
[356574785,1742702836317,-500.0,0.00019933,2]
[356574786,1742702836339,-62.75672495,0.00019933,2]
[356574788,1742702953137,-261.94307665,0.00018971,2]
[356574789,1742702953157,-173.785802,0.00019424,2]
[356574790,1742702953179,-300.0,0.00019932,2]
[356574791,1742702953201,-825.59755622,0.00019933,2]
[356574792,1742702953223,-888.35428117,0.00019933,2]
[356574793,1742702953244,-573.9124458,0.00019933,2]
[356574794,1742702953266,-888.35428117,0.00019933,2]
[356574795,1742702953288,-888.35428117,0.00019933,2]
[356574796,1742702953313,-888.35428117,0.00019933,2]
[356574797,1742702953334,-888.35428117,0.00019933,2]
[356574798,1742702953355,-888.35428117,0.00019933,2]
[356574799,1742702953377,-888.35428117,0.00019933,2]
[356574800,1742702953400,-888.35428117,0.00019933,2]
[356574801,1742702953422,-888.35428117,0.00019933,2]
[356574802,1742702953444,-888.35428117,0.00019933,2]
[356574803,1742702953466,-888.35428117,0.00019933,2]
[356574804,1742702953489,-888.35428117,0.00019933,2]
[356574805,1742702953512,-888.35428117,0.00019933,2]
[356574806,1742702953534,-888.35428117,0.00019933,2]
[356574807,1742702953557,-772.73803823,0.00019933,2]
[356574808,1742702954097,-115.61624294,0.00019933,2]
[356574809,1742702954118,-374.38375706,0.00019933,2]
[356574811,1742702959106,-513.97052411,0.00019933,2]
[356574812,1742702959131,-888.35428117,0.00019933,2]
[356574813,1742702959155,-888.35428117,0.00019933,2]
[356574814,1742702959179,-888.35428117,0.00019933,2]
[356574815,1742702959201,-888.35428117,0.00019933,2]
[356574816,1742702959224,-888.35428117,0.00019933,2]
[356574817,1742702959247,-888.35428117,0.00019933,2]
[356574818,1742702959269,-888.35428117,0.00019933,2]
[356574819,1742702959292,-888.35428117,0.00019933,2]
[356574820,1742702959315,-888.35428117,0.00019933,2]
[356574821,1742702959338,-888.35428117,0.00019933,2]
[356574822,1742702959361,-436.80127207,0.00019933,2]
[356574823,1742702967190,-451.5530091,0.00019933,2]
[356574824,1742702967212,-888.35428117,0.00019933,2]
[356574825,1742702967235,-888.35428117,0.00019933,2]
[356574826,1742702967258,-888.35428117,0.00019933,2]
[356574827,1742702967282,-888.35428117,0.00019933,2]
[356574828,1742702967305,-888.35428117,0.00019933,2]
[356574829,1742702967328,-888.35428117,0.00019933,2]
[356574830,1742702967352,-888.35428117,0.00019933,2]
[356574831,1742702967375,-888.35428117,0.00019933,2]
[356574832,1742702967401,-888.35428117,0.00019933,2]
[356574833,1742702967422,-888.35428117,0.00019933,2]
[356574834,1742702967446,-888.35428117,0.00019933,2]
[356574835,1742702967468,-888.35428117,0.00019933,2]
[356574836,1742702967492,-888.35428117,0.00019933,2]
[356574837,1742702967514,-888.35428117,0.00019933,2]
[356574838,1742702967538,-888.35428117,0.00019933,2]
[356574839,1742702967561,-888.35428117,0.00019933,2]
[356574840,1742702967584,-888.35428117,0.00019933,2]
[356574841,1742702967607,-888.35428117,0.00019933,2]
[356574842,1742702967630,-888.35428117,0.00019933,2]
[356574843,1742702967654,-888.35428117,0.00019933,2]
[356574844,1742702967677,-888.35428117,0.00019933,2]
[356574845,1742702967699,-888.35428117,0.00019933,2]
[356574846,1742702967721,-888.35428117,0.00019933,2]
[356574847,1742702967744,-888.35428117,0.00019933,2]
[356574848,1742702967766,-888.35428117,0.00019933,2]
[356574849,1742702967788,-888.35428117,0.00019933,2]
[356574850,1742702967811,-888.35428117,0.00019933,2]
[356574851,1742702967834,-888.35428117,0.00019933,2]
[356574852,1742702967856,-888.35428117,0.00019933,2]
[356574853,1742702967878,-285.99027175,0.00019933,2]
[356574854,1742702967900,-3789.99526736,0.00019933,2]
[356574855,1742702967923,-3789.99526736,0.00019933,2]
[356574856,1742702967945,-3789.99526736,0.00019933,2]
[356574857,1742702967967,-3789.99526736,0.00019933,2]
[356574858,1742702967988,-3789.99526736,0.00019933,2]
[356574859,1742702968010,-3789.99526736,0.00019933,2]
[356574860,1742702968031,-3789.99526736,0.00019933,2]
[356574861,1742702968054,-3789.99526736,0.00019933,2]
[356574862,1742702968078,-3789.99526736,0.00019933,2]
[356574863,1742702968100,-3789.99526736,0.00019933,2]
[356574864,1742702968123,-3789.99526736,0.00019933,2]
[356574865,1742702968146,-3789.99526736,0.00019933,2]
[356574866,1742702968168,-3789.99526736,0.00019933,2]
[356574867,1742702968190,-3789.99526736,0.00019933,2]
[356574868,1742702968211,-3789.99526736,0.00019933,2]
[356574869,1742702968234,-3789.99526736,0.00019933,2]
[356574870,1742702968257,-3789.99526736,0.00019933,2]
[356574871,1742702968280,-3789.99526736,0.00019933,2]
[356574872,1742702968306,-3789.99526736,0.00019933,2]
[356574873,1742702968328,-3789.99526736,0.00019933,2]
[356574874,1742702968351,-3789.99526736,0.00019933,2]
[356574875,1742702968375,-3789.99526736,0.00019933,2]
[356574876,1742702968403,-3789.99526736,0.00019933,2]
[356574877,1742702968426,-3789.99526736,0.00019933,2]
[356574878,1742702968449,-3789.99526736,0.00019933,2]
[356574879,1742702968472,-3789.99526736,0.00019933,2]
[356574880,1742702968496,-3789.99526736,0.00019933,2]
[356574881,1742702968518,-6295.39116095,0.00019933,2]
[356574882,1742702968540,-4894.47841488,0.00019933,2]
[356574883,1742702968565,-4894.47841488,0.00019933,2]
[356574884,1742702968594,-4894.47841488,0.00019933,2]
[356574885,1742702968618,-4894.47841488,0.00019933,2]
[356574886,1742702968642,-4894.47841488,0.00019933,2]
[356574887,1742702968664,-4894.47841488,0.00019933,2]
[356574888,1742702968684,-29527.627438,0.00019937,2]
[356574889,1742702968704,-500.0,0.0002,2]
[356574890,1742702968724,-500.0,0.0002,2]
[356574891,1742702968744,-500.0,0.0002,2]